fUSD/lending_fUSD_20240930
["ID","MTS","AMOUNT","RATE_DAILY","PERIOD"]
[339598813,1727725855231,-500.0,0.00012876,2]
[339598814,1727725855239,-500.0,0.00012876,2]
[339598815,1727725855248,-484.07397465,0.00012876,2]
[339598816,1727725855258,-500.0,0.00012876,2]
[339598817,1727725855267,-568.1199682,0.00012876,2]
[339598818,1727725855276,-500.0,0.00012876,2]
[339598819,1727725855285,-500.0,0.00012876,2]
[339598820,1727725855293,-500.0,0.00012876,2]
[339598821,1727725855302,-500.0,0.00012876,2]
[339598822,1727725855311,-500.0,0.00012876,2]
[339598823,1727725855320,-424.76152412,0.00012876,2]
[339598824,1727725855329,-500.0,0.00012876,2]
[339598825,1727725855338,-500.0,0.00012876,2]
[339598826,1727725855346,-500.0,0.00012876,2]
[339598827,1727725855355,-502.70241095,0.00012876,2]
[339598828,1727725855364,-503.2091592,0.00012876,2]
[339598829,1727725855374,-500.0,0.00012876,2]
[339598831,1727725855383,-500.0,0.00012876,2]
[339598832,1727725855393,-500.0,0.00012876,2]
[339598833,1727725855402,-500.0,0.00012876,2]
[339598834,1727725855412,-500.0,0.00012876,2]
[339598835,1727725855427,-500.0,0.00012876,2]
[339598836,1727725855441,-514.62694646,0.00012876,2]
[339598837,1727725855455,-500.0,0.00012876,2]
[339598838,1727725855466,-616.44039704,0.00012876,2]
[339598839,1727725855478,-502.15337049,0.00012876,2]
[339598840,1727725855491,-500.0,0.00012876,2]
[339598841,1727725855505,-502.72442392,0.00012876,2]
[339598842,1727725855519,-500.0,0.00012876,2]
[339598843,1727725855531,-500.0,0.00012876,2]
[339598844,1727725855545,-348.55605419,0.00012876,2]
[339598845,1727725855559,-517.24459402,0.00012876,2]
[339598846,1727725855572,-500.0,0.00012876,2]
[339598847,1727725855587,-176.09619649,0.00012876,2]
[339598848,1727725855599,-500.0,0.00012876,2]
[339598849,1727725855613,-500.0,0.00012876,2]
[339598850,1727725855626,-500.0,0.00012876,2]
[339598851,1727725855638,-502.72008904,0.00012876,2]
[339598852,1727725855650,-500.0,0.00012876,2]
[339598853,1727725855660,-500.0,0.00012876,2]
[339598854,1727725855673,-500.0,0.00012876,2]
[339598855,1727725855684,-1754.22,0.00012876,2]
[339598856,1727725855696,-542.29609911,0.00012876,2]
[339598857,1727725855709,-1754.22,0.00012876,2]
[339598858,1727725855721,-1754.22,0.00012876,2]
[339598859,1727725855734,-1754.22,0.00012876,2]
[339598860,1727725855748,-1754.22,0.00012876,2]
[339598861,1727725855761,-1754.22,0.00012876,2]
[339598862,1727725855771,-255.30523221,0.00012876,2]
[339598863,1727725856209,-314.21715479,0.00012876,2]
[339599205,1727726443050,236.85,9.891e-05,2]
[339599428,1727727032406,-173.8,0.00010959,2]
[339599429,1727727032415,-162.19,0.00010959,2]
[339599430,1727727032426,-102.59020339,0.00011,2]
[339599431,1727727032460,-947.40979661,0.00011,2]
[339599432,1727727032470,-226.52171727,0.00011564,2]
[339599433,1727727032672,-150.0,0.00011564,2]
[339599435,1727727032684,-150.00000001,0.00011564,2]
[339599437,1727727032694,-150.0,0.00011564,2]
[339599439,1727727032703,-150.0,0.00011564,2]
[339599440,1727727032712,-250.0,0.00011798,2]
[339599441,1727727032721,-1000.0,0.00011798,2]
[339599443,1727727032731,-194.15,0.00011799,2]
[339599444,1727727032740,-222.66,0.00011806,2]
[339599445,1727727032749,-167.46,0.00012445,2]
[339599446,1727727032758,-230.61433,0.00012493,2]
[339599447,1727727032767,-998.76,0.000125,2]
[339599448,1727727032776,-150.0,0.000125,2]
[339599449,1727727032787,-585.63,0.000125,2]
[339599450,1727727032796,-301.54,0.000125,2]
[339599451,1727727032805,-1022.47199671,0.00012618,2]
[339599452,1727727032815,-1225.17190791,0.00012766,2]
[339599453,1727727032824,-305.5086,0.00012769,2]
[339599454,1727727032834,-7290.3806,0.00012769,2]
[339599455,1727727032843,-500.0,0.00012773,2]
[339599456,1727727032853,-500.0,0.00012773,2]
[339599457,1727727032862,-617.14,0.00012775,2]
[339599458,1727727032872,-181.071,0.00012775,2]
[339599459,1727727032881,-7054.24422324,0.00012775,2]
[339599460,1727727032904,-1437.62195802,0.00012775,2]
[339599472,1727727038461,-6731.17851874,0.00012775,2]
[339599473,1727727038472,-5783.3745,0.00012776,2]
[339599474,1727727038481,-1650.1967,0.00012776,2]
[339599475,1727727038492,-533.0938,0.00012776,2]
[339599476,1727727038502,-3461.09178676,0.00012776,2]
[339599477,1727727038514,-987.9,0.00012776,2]
[339599525,1727727040300,-7660.64591324,0.00012776,2]
[339599527,1727727040310,-2767.41719689,0.00012776,2]
[339599528,1727727040321,-4703.58280311,0.00012776,2]
[339599529,1727727040330,-190.86438807,0.00012776,2]
[339599530,1727727040339,-1799.53102747,0.00012776,2]
[339599531,1727727040348,-354.29980773,0.00012776,2]
[339599532,1727727040357,-1799.53102739,0.00012779,2]
[339599533,1727727040368,-1799.53102739,0.00012781,2]
[339599534,1727727040377,-1799.53102739,0.00012784,2]
[339599535,1727727040387,-1799.53102739,0.00012787,2]
[339599536,1727727040396,-1799.53102739,0.00012789,2]
[339599537,1727727040405,-1799.53102739,0.00012792,2]
[339599538,1727727040415,-150.0,0.00012795,2]
[339599539,1727727040424,-1799.53102739,0.00012795,2]
[339599540,1727727040433,-1799.53102739,0.00012797,2]
[339599541,1727727040443,-1799.53102739,0.000128,2]
[339599542,1727727040452,-150.0,0.00012849,2]
[339599543,1727727040461,-267.30264487,0.00012866,2]
[339599544,1727727040470,-151.73,0.00012866,2]
[339599545,1727727040479,-19439.3674782,0.00012869,2]
[339599546,1727727040489,-3515.905278,0.00012869,2]
[339599547,1727727040498,-1091.7171404,0.00012869,2]
[339599548,1727727040507,-500.0,0.00012875,2]
[339599549,1727727040516,-500.0,0.00012875,2]
[339599550,1727727040525,-386.6062478,0.00012875,2]
[339599551,1727727040535,-940.72322742,0.00012875,3]
[339599552,1727727040553,-277617.2244115,0.00012876,2]
[339599553,1727727040569,-489.26379775,0.00012876,2]
[339599554,1727727040580,-318.025062,0.00012876,2]
[339599555,1727727040591,-300.0,0.00012876,2]
[339599617,1727727043399,-548.79774281,0.00012876,2]
[339599618,1727727043411,-562.6023957,0.00012876,2]
[339599619,1727727043422,-730.07140233,0.00012876,2]
[339599620,1727727043433,-652.62529538,0.00012876,2]
[339599621,1727727043453,-18386.04645497,0.00012876,2]
[339599622,1727727043465,-1759.6927464,0.00012876,2]
[339599623,1727727043479,-124077.91140662,0.00012876,2]
[339599624,1727727043509,-1395.68655566,0.00012876,2]
[339599625,1727727043520,-13862.52208307,0.00012876,2]
[339599626,1727727043531,-20464.29,0.00012876,2]
[339599627,1727727043567,-4246.81921635,0.00012876,2]
[339599628,1727727043578,-942.316296,0.00012876,2]
[339599629,1727727043588,-267.2758069,0.00012876,2]
[339599655,1727727046248,-244.74,0.00010221,2]
[339599656,1727727046258,-244.74,0.00012485,2]
[339599657,1727727046267,-1507.40135758,0.00012876,2]
[339599658,1727727046301,-3145.66036694,0.00012876,2]
[339599659,1727727046355,-19148.27129954,0.00012876,2]
[339599660,1727727046366,-1874.06416438,0.00012876,2]
[339599661,1727727046410,-734.01641473,0.00012876,2]
[339599662,1727727046464,-943.31862009,0.00012876,2]
[339599663,1727727046475,-7811.78430333,0.00012876,2]
[339599664,1727727046486,-635.39287192,0.00012876,2]
[339599665,1727727046520,-812.74759037,0.00012876,2]
[339599666,1727727046531,-3929.113636,0.00012876,2]
[339599667,1727727046542,-588.94,0.00012876,2]
[339599668,1727727046554,-603.28558204,0.00012876,2]
[339599669,1727727046565,-743.3523116,0.00012876,2]
[339599670,1727727046576,-2610.19070253,0.00012876,2]
[339599853,1727727691669,243.46,9.648e-05,2]
[339599955,1727728036420,256.41,9.085e-05,2]
[339599967,1727728106476,3925.26051336,0.0001,2]
[339600021,1727728231524,-582.41,0.00010859,2]
[339600031,1727728231692,-1988.43190656,0.00010859,2]
[339600032,1727728231702,-172.23,0.00010959,2]
[339600033,1727728231712,-166.39,0.00010959,2]
[339600034,1727728231721,-192.90250521,0.00010959,2]
[339600035,1727728231732,-7.09749479,0.00010959,2]
[339600036,1727728231741,-1050.0,0.00011,2]
[339600037,1727728231750,-274.34,0.00011327,2]
[339600039,1727728231759,-2000.0,0.00011347,2]
[339600040,1727728231769,-250.0,0.00011367,2]
[339600041,1727728231779,-516.68,0.00011368,2]
[339600042,1727728231789,-200.0,0.00011374,2]
[339600043,1727728231798,-7348.43286676,0.00011378,2]
[339600044,1727728231810,-7536.04713324,0.00011378,2]
[339600046,1727728231819,-229.24,0.0001138,2]
[339600048,1727728231829,-250.0,0.00011382,2]
[339600050,1727728231839,-250.0,0.00011432,2]
[339600052,1727728231848,-487.08,0.00011437,2]
[339600054,1727728231858,-395.48,0.00011477,2]
[339600056,1727728231867,-107.28744401,0.00011482,2]
[339600098,1727728239585,-1751.21255599,0.00011482,2]
[339600099,1727728239595,-188.4,0.00011569,2]
[339600100,1727728239604,-1000.0,0.00011765,2]
[339600101,1727728239614,-243.46,0.00011912,2]
[339600102,1727728239623,-180.0,0.0001253,2]
[339600103,1727728239635,-179.247,0.00012618,2]
[339600104,1727728239645,-572.586,0.00012618,2]
[339600105,1727728239654,-1142.86535671,0.00012618,2]
[339600106,1727728239663,-731.17004278,0.00012618,2]
[339600107,1727728239673,-1446.6341,0.00012676,2]
[339600108,1727728239683,-5327.36147589,0.00012676,2]
[339600109,1727728239694,-3921.10659425,0.00012676,2]
[339600110,1727728239863,-776.10895265,0.00012676,2]
[339600115,1727728242754,-808.07556177,0.00011854,2]
[339600116,1727728242766,-191.92443823,0.00011854,2]
[339600117,1727728242775,-554.06856187,0.00012676,2]
[339600118,1727728242786,-653.325994,0.00012676,2]
[339600119,1727728242797,-957.22185589,0.00012676,2]
[339600120,1727728242808,-2648.1499,0.00012676,2]
[339600121,1727728242824,-256.424324,0.00012676,2]
[339600122,1727728242834,-420.5027,0.00012676,2]
[339600123,1727728242855,-20245.3968731,0.00012676,2]
[339600124,1727728242866,-1102.04259969,0.00012676,2]
[339600125,1727728242882,-482.285006,0.00012676,2]
[339600126,1727728242906,-55588.52986266,0.00012676,2]
[339600127,1727728242915,-1596.2984,0.00012676,2]
[339600128,1727728242926,-4257.19260897,0.00012676,2]
[339600129,1727728242936,-168.62496734,0.00012676,2]
[339600130,1727728242945,-4257.1926089,0.0001269,2]
[339600131,1727728242954,-352.54,0.0001269,2]
[339600132,1727728242964,-150.99,0.0001269,2]
[339600133,1727728242974,-4257.1926089,0.00012704,2]
[339600134,1727728242983,-4257.1926089,0.00012717,2]
[339600135,1727728242993,-4257.1926089,0.00012731,2]
[339600136,1727728243003,-4257.1926089,0.00012745,2]
[339600137,1727728243012,-2303.06356739,0.00012747,2]
[339600138,1727728243022,-4257.1926089,0.00012759,2]
[339600139,1727728243031,-500.0,0.00012772,2]
[339600140,1727728243040,-4257.1926089,0.00012772,2]
[339600141,1727728243049,-500.0,0.00012773,2]
[339600142,1727728243058,-500.0,0.00012773,2]
[339600143,1727728243067,-243020.9628,0.00012776,2]
[339600144,1727728243076,-6707.354,0.00012776,2]
[339600145,1727728243086,-156.84422594,0.00012776,2]
[339600146,1727728243095,-4257.1926089,0.00012786,2]
[339600147,1727728243104,-150.0,0.00012795,2]
[339600148,1727728243113,-995.3,0.000128,2]
[339600149,1727728243122,-4257.1926089,0.000128,2]
[339600150,1727728243132,-283.93620275,0.00012801,2]
[339600151,1727728243140,-151.93,0.00012863,2]
[339600152,1727728243149,-2372.4238101,0.00012869,2]
[339600153,1727728243159,-421.35254451,0.00012869,2]
[339600154,1727728243168,-518.4349949,0.00012869,2]
[339600155,1727728243177,-9205.8210217,0.00012869,2]
[339600156,1727728243186,-561.21663832,0.00012873,2]
[339600157,1727728243195,-500.0,0.00012873,2]
[339600158,1727728243211,-466815.76353075,0.00012876,2]
[339600159,1727728243221,-151.0,0.00012876,2]
[339600160,1727728243230,-200.0,0.00012876,2]
[339600161,1727728243240,-500.0,0.00012876,2]
[339600162,1727728243251,-504.45797845,0.00012876,2]
[339600163,1727728243260,-500.0,0.00012876,2]
[339600164,1727728243269,-500.0,0.00012876,2]
[339600165,1727728243280,-500.0,0.00012876,2]
[339600166,1727728243290,-500.0,0.00012876,2]
[339600167,1727728243299,-500.0,0.00012876,2]
[339600168,1727728243308,-500.0,0.00012876,2]
[339600169,1727728243317,-291.50172941,0.00012876,2]
[339600170,1727728243326,-500.6526183,0.00012876,2]
[339600171,1727728243335,-500.0,0.00012876,2]
[339600172,1727728243345,-500.0,0.00012876,2]
[339600173,1727728243354,-500.0,0.00012876,2]
[339600174,1727728243363,-470.97819182,0.00012876,2]
[339600175,1727728243372,-316.83710439,0.00012876,2]
[339600176,1727728243383,-587.96,0.00012876,2]
[339600177,1727728243392,-587.96,0.00012876,2]
[339600178,1727728243401,-587.96,0.00012876,2]
[339600179,1727728243410,-587.96,0.00012876,2]
[339600180,1727728243419,-587.96,0.00012876,2]
[339600181,1727728243429,-587.96,0.00012876,2]
[339600182,1727728243438,-587.96,0.00012876,2]
[339600183,1727728243447,-587.96,0.00012876,2]
[339600184,1727728243457,-587.96,0.00012876,2]
[339600185,1727728243467,-500.0,0.00012876,2]
[339600186,1727728243476,-502.16859742,0.00012876,2]
[339600187,1727728243486,-500.0,0.00012876,2]
[339600188,1727728243496,-500.0,0.00012876,2]
[339600189,1727728243505,-500.0,0.00012876,2]
[339600190,1727728243515,-1220.05,0.00012876,2]
[339600191,1727728243524,-500.0,0.00012876,2]
[339600192,1727728243533,-500.0,0.00012876,2]
[339600193,1727728243542,-1220.05,0.00012876,2]
[339600194,1727728243551,-500.0,0.00012876,2]
[339600195,1727728243560,-1220.05,0.00012876,2]
[339600196,1727728243570,-500.0,0.00012876,2]
[339600197,1727728243579,-500.0,0.00012876,2]
[339600198,1727728243589,-1220.05,0.00012876,2]
[339600199,1727728243598,-500.0,0.00012876,2]
[339600200,1727728243607,-1220.05,0.00012876,2]
[339600201,1727728243617,-1220.05,0.00012876,2]
[339600202,1727728243627,-1220.05,0.00012876,2]
[339600203,1727728243637,-1220.05,0.00012876,2]
[339600204,1727728243646,-1220.05,0.00012876,2]
[339600205,1727728243655,-1397.89,0.00012876,2]
[339600206,1727728243665,-1397.89,0.00012876,2]
[339600207,1727728243674,-1397.89,0.00012876,2]
[339600208,1727728243683,-1397.89,0.00012876,2]
[339600209,1727728243692,-1397.89,0.00012876,2]
[339600210,1727728243701,-1397.89,0.00012876,2]
[339600211,1727728243711,-1397.89,0.00012876,2]
[339600212,1727728243721,-500.0,0.00012876,2]
[339600213,1727728243730,-1397.89,0.00012876,2]
[339600214,1727728243739,-500.0,0.00012876,2]
[339600215,1727728243749,-1397.89,0.00012876,2]
[339600216,1727728243759,-500.0,0.00012876,2]
[339600217,1727728243768,-500.0,0.00012876,2]
[339600218,1727728243777,-974.05,0.00012876,2]
[339600219,1727728243787,-500.0,0.00012876,2]
[339600220,1727728243795,-974.05,0.00012876,2]
[339600221,1727728243804,-554.27090603,0.00012876,2]
[339600222,1727728243813,-974.05,0.00012876,2]
[339600223,1727728243823,-974.05,0.00012876,2]
[339600224,1727728243832,-974.05,0.00012876,2]
[339600225,1727728243841,-974.05,0.00012876,2]
[339600226,1727728243851,-974.05,0.00012876,2]
[339600227,1727728243860,-500.0,0.00012876,2]
[339600228,1727728243870,-500.0,0.00012876,2]
[339600229,1727728243880,-500.0,0.00012876,2]
[339600230,1727728243890,-500.0,0.00012876,2]
[339600231,1727728243899,-500.0,0.00012876,2]
[339600232,1727728243909,-500.0,0.00012876,2]
[339600233,1727728243918,-641.88059674,0.00012876,2]
[339600234,1727728243928,-500.0,0.00012876,2]
[339600235,1727728243937,-510.61795566,0.00012876,2]
[339600236,1727728243947,-500.0,0.00012876,2]
[339600237,1727728243956,-500.0,0.00012876,2]
[339600238,1727728243966,-500.0,0.00012876,2]
[339600239,1727728243976,-500.0,0.00012876,2]
[339600240,1727728243986,-416.34896187,0.00012876,2]
[339600241,1727728243995,-500.0,0.00012876,2]
[339600242,1727728244005,-500.0,0.00012876,2]
[339600243,1727728244015,-500.0,0.00012876,2]
[339600244,1727728244024,-500.0,0.00012876,2]
[339600245,1727728244034,-500.0,0.00012876,2]
[339600246,1727728244043,-500.0,0.00012876,2]
[339600247,1727728244053,-176.88,0.00012876,2]
[339600248,1727728244062,-1270.83,0.00012876,2]
[339600249,1727728244072,-1270.83,0.00012876,2]
[339600250,1727728244081,-1270.83,0.00012876,2]
[339600251,1727728244092,-1270.83,0.00012876,2]
[339600252,1727728244101,-1270.83,0.00012876,2]
[339600253,1727728244111,-500.0,0.00012876,2]
[339600254,1727728244121,-500.0,0.00012876,2]
[339600255,1727728244131,-1270.83,0.00012876,2]
[339600256,1727728244141,-500.0,0.00012876,2]
[339600257,1727728244151,-1270.83,0.00012876,2]
[339600258,1727728244161,-500.0,0.00012876,2]
[339600259,1727728244170,-1270.83,0.00012876,2]
[339600260,1727728244180,-1270.83,0.00012876,2]
[339600261,1727728244190,-500.0,0.00012876,2]
[339600262,1727728244201,-500.0,0.00012876,2]
[339600263,1727728244214,-506.53187024,0.00012876,2]
[339600264,1727728244223,-500.0,0.00012876,2]
[339600265,1727728244232,-500.0,0.00012876,2]
[339600266,1727728244243,-500.0,0.00012876,2]
[339600267,1727728244252,-500.0,0.00012876,2]
[339600268,1727728244261,-500.0,0.00012876,2]
[339600269,1727728244271,-500.0,0.00012876,2]
[339600270,1727728244280,-500.0,0.00012876,2]
[339600271,1727728244290,-500.0,0.00012876,2]
[339600272,1727728244300,-500.0,0.00012876,2]
[339600273,1727728244309,-500.0,0.00012876,2]
[339600274,1727728244319,-500.0,0.00012876,2]
[339600275,1727728244328,-500.0,0.00012876,2]
[339600276,1727728244338,-500.0,0.00012876,2]
[339600277,1727728244347,-506.56820351,0.00012876,2]
[339600278,1727728244357,-500.0,0.00012876,2]
[339600279,1727728244367,-500.0,0.00012876,2]
[339600280,1727728244376,-500.0,0.00012876,2]
[339600281,1727728244387,-510.7204607,0.00012876,2]
[339600282,1727728244397,-500.0,0.00012876,2]
[339600283,1727728244406,-500.0,0.00012876,2]
[339600284,1727728244415,-500.0,0.00012876,2]
[339600285,1727728244425,-500.0,0.00012876,2]
[339600286,1727728244435,-500.0,0.00012876,2]
[339600287,1727728244444,-500.0,0.00012876,2]
[339600288,1727728244454,-500.0,0.00012876,2]
[339600289,1727728244464,-500.0,0.00012876,2]
[339600290,1727728244474,-500.0,0.00012876,2]
[339600291,1727728244483,-2200.43,0.00012876,2]
[339600292,1727728244493,-2200.43,0.00012876,2]
[339600293,1727728244503,-2200.43,0.00012876,2]
[339600294,1727728244512,-2200.43,0.00012876,2]
[339600295,1727728244522,-2200.43,0.00012876,2]
[339600296,1727728244531,-2200.43,0.00012876,2]
[339600297,1727728244541,-2200.43,0.00012876,2]
[339600298,1727728244551,-2200.43,0.00012876,2]
[339600299,1727728244560,-2200.43,0.00012876,2]
[339600300,1727728244569,-500.0,0.00012876,2]
[339600301,1727728244578,-500.0,0.00012876,2]
[339600302,1727728244588,-503.94273457,0.00012876,2]
[339600303,1727728244597,-501.21566769,0.00012876,2]
[339600304,1727728244607,-501.57661825,0.00012876,2]
[339600305,1727728244616,-917.36,0.00012876,2]
[339600306,1727728244626,-917.36,0.00012876,2]
[339600307,1727728244636,-917.36,0.00012876,2]
[339600308,1727728244646,-917.36,0.00012876,2]
[339600309,1727728244655,-917.36,0.00012876,2]
[339600310,1727728244665,-642.73384881,0.00012876,2]
[339600311,1727728244675,-917.36,0.00012876,2]
[339600312,1727728244684,-917.36,0.00012876,2]
[339600313,1727728244693,-917.36,0.00012876,2]
[339600314,1727728244703,-500.44521881,0.00012876,2]
[339600315,1727728244712,-500.0,0.00012876,2]
[339600316,1727728244723,-503.5670675,0.00012876,2]
[339600317,1727728244733,-301.05278392,0.00012876,2]
[339600318,1727728244742,-501.85718149,0.00012876,2]
[339600319,1727728244752,-502.74322014,0.00012876,2]
[339600320,1727728244761,-500.0,0.00012876,2]
[339600321,1727728244771,-506.3913148,0.00012876,2]
[339600322,1727728244780,-1036.56,0.00012876,2]
[339600323,1727728244789,-1036.56,0.00012876,2]
[339600324,1727728244798,-1036.56,0.00012876,2]
[339600325,1727728244808,-1036.56,0.00012876,2]
[339600326,1727728244817,-1036.56,0.00012876,2]
[339600327,1727728244827,-1036.56,0.00012876,2]
[339600328,1727728244836,-1036.56,0.00012876,2]
[339600329,1727728244845,-1036.56,0.00012876,2]
[339600330,1727728244855,-500.0,0.00012876,2]
[339600331,1727728244865,-500.0,0.00012876,2]
[339600332,1727728244875,-500.0,0.00012876,2]
[339600333,1727728244886,-500.0,0.00012876,2]
[339600334,1727728244895,-500.0,0.00012876,2]
[339600335,1727728244905,-500.0,0.00012876,2]
[339600336,1727728244914,-500.0,0.00012876,2]
[339600337,1727728244924,-500.0,0.00012876,2]
[339600338,1727728244933,-500.0,0.00012876,2]
[339600339,1727728244943,-500.0,0.00012876,2]
[339600340,1727728244952,-500.0,0.00012876,2]
[339600341,1727728244962,-500.0,0.00012876,2]
[339600342,1727728244971,-309.2696671,0.00012876,2]
[339600343,1727728244980,-500.0,0.00012876,2]
[339600344,1727728244990,-500.0,0.00012876,2]
[339600345,1727728244999,-500.0,0.00012876,2]
[339600346,1727728245009,-500.0,0.00012876,2]
[339600347,1727728245019,-500.0,0.00012876,2]
[339600348,1727728245028,-500.0,0.00012876,2]
[339600349,1727728245038,-500.0,0.00012876,2]
[339600350,1727728245047,-500.0,0.00012876,2]
[339600351,1727728245057,-500.0,0.00012876,2]
[339600352,1727728245067,-500.0,0.00012876,2]
[339600353,1727728245076,-500.0,0.00012876,2]
[339600354,1727728245086,-500.0,0.00012876,2]
[339600355,1727728245096,-500.0,0.00012876,2]
[339600356,1727728245106,-500.0,0.00012876,2]
[339600357,1727728245115,-500.0,0.00012876,2]
[339600358,1727728245125,-500.0,0.00012876,2]
[339600359,1727728245136,-500.0,0.00012876,2]
[339600360,1727728245146,-500.0,0.00012876,2]
[339600361,1727728245156,-500.0,0.00012876,2]
[339600362,1727728245166,-500.0,0.00012876,2]
[339600363,1727728245176,-509.43124539,0.00012876,2]
[339600364,1727728245186,-500.0,0.00012876,2]
[339600365,1727728245196,-500.0,0.00012876,2]
[339600366,1727728245209,-500.0,0.00012876,2]
[339600367,1727728245219,-500.0,0.00012876,2]
[339600368,1727728245229,-500.0,0.00012876,2]
[339600369,1727728245238,-500.0,0.00012876,2]
[339600370,1727728245248,-500.0,0.00012876,2]
[339600371,1727728245257,-500.0,0.00012876,2]
[339600372,1727728245267,-553.29,0.00012876,2]
[339600373,1727728245277,-553.29,0.00012876,2]
[339600374,1727728245286,-553.29,0.00012876,2]
[339600375,1727728245295,-553.29,0.00012876,2]
[339600376,1727728245305,-553.29,0.00012876,2]
[339600377,1727728245315,-500.0,0.00012876,2]
[339600378,1727728245324,-500.0,0.00012876,2]
[339600379,1727728245334,-500.0,0.00012876,2]
[339600380,1727728245344,-500.0,0.00012876,2]
[339600381,1727728245354,-500.0,0.00012876,2]
[339600382,1727728245363,-500.0,0.00012876,2]
[339600383,1727728245372,-500.0,0.00012876,2]
[339600384,1727728245383,-500.0,0.00012876,2]
[339600385,1727728245402,-500.0,0.00012876,2]
[339600386,1727728245412,-500.0,0.00012876,2]
[339600387,1727728245421,-500.0,0.00012876,2]
[339600388,1727728245431,-500.0,0.00012876,2]
[339600389,1727728245440,-500.0,0.00012876,2]
[339600390,1727728245449,-500.0,0.00012876,2]
[339600391,1727728245459,-500.0,0.00012876,2]
[339600392,1727728245469,-500.0,0.00012876,2]
[339600393,1727728245478,-500.0,0.00012876,2]
[339600395,1727728245487,-500.0,0.00012876,2]
[339600396,1727728245497,-500.0,0.00012876,2]
[339600397,1727728245507,-500.0,0.00012876,2]
[339600398,1727728245516,-500.0,0.00012876,2]
[339600399,1727728245525,-500.0,0.00012876,2]
[339600400,1727728245536,-762.01,0.00012876,2]
[339600401,1727728245545,-762.01,0.00012876,2]
[339600402,1727728245554,-553.29,0.00012876,2]
[339600403,1727728245563,-762.01,0.00012876,2]
[339600404,1727728245573,-553.29,0.00012876,2]
[339600405,1727728245582,-762.01,0.00012876,2]
[339600406,1727728245592,-762.01,0.00012876,2]
[339600407,1727728245601,-762.01,0.00012876,2]
[339600408,1727728245611,-762.01,0.00012876,2]
[339600409,1727728245620,-500.0,0.00012876,2]
[339600410,1727728245630,-500.0,0.00012876,2]
[339600411,1727728245639,-266.25289213,0.00012876,2]
[339600412,1727728245649,-500.43445605,0.00012876,2]
[339600413,1727728245659,-1033.46,0.00012876,2]
[339600414,1727728245668,-1033.46,0.00012876,2]
[339600415,1727728245678,-1033.46,0.00012876,2]
[339600416,1727728245687,-302.99251571,0.00012876,2]
[339600417,1727728245697,-1033.46,0.00012876,2]
[339600418,1727728245706,-1033.46,0.00012876,2]
[339600419,1727728245716,-1033.46,0.00012876,2]
[339600420,1727728245725,-1033.46,0.00012876,2]
[339600421,1727728245734,-212.50450472,0.00012876,2]
[339600422,1727728245743,-500.0,0.00012876,2]
[339600423,1727728245753,-500.0,0.00012876,2]
[339600424,1727728245762,-501.24658208,0.00012876,2]
[339600425,1727728245771,-500.0,0.00012876,2]
[339600426,1727728245780,-505.12254017,0.00012876,2]
[339600427,1727728245791,-416.56002637,0.00012876,2]
[339600428,1727728245800,-500.0,0.00012876,2]
[339600430,1727728245809,-500.0,0.00012876,2]
[339600432,1727728245818,-1122.93,0.00012876,2]
[339600434,1727728245827,-1122.93,0.00012876,2]
[339600436,1727728245836,-1122.93,0.00012876,2]
[339600438,1727728245846,-500.0,0.00012876,2]
[339600439,1727728245855,-1122.93,0.00012876,2]